bitfinex-derivatives/quotes_SOLF0:USTF0_20260312
["timestamp","ask_amount","ask_price","bid_price","bid_amount"]
[1773334441787,13.25418522,86.899,86.832,13.13735011]
[1773334442186,10.357,86.884,86.832,13.13735011]
[1773334442385,10.357,86.884,86.835,13.13735011]
[1773334443187,10.357,86.882,86.841,10.362]
[1773334443686,13.25418522,86.881,86.841,10.362]
[1773334443887,13.25418522,86.881,86.835,13.13735011]
[1773334444093,13.25418522,86.881,86.832,10.363]
[1773334444994,13.25418522,86.873,86.811,509.90652922]
[1773334445189,13.25418522,86.873,86.811,495.84654977]
[1773334445594,13.25418522,86.86,86.811,495.84654977]
[1773334449401,13.25418522,86.853,86.8,10.367]
[1773334449596,3.39555386,86.84,86.8,10.367]
[1773334449802,16.64973908,86.84,86.8,10.367]
[1773334450299,13.25418522,86.84,86.8,10.367]
[1773334450503,13.25418522,86.84,86.768,21.20694823]
[1773334450504,3.39555386,86.82,86.774,13.13735011]
[1773334450702,13.25418522,86.829,86.781,13.13735011]
[1773334451501,10.362,86.837,86.791,13.13735011]
[1773334452702,3.39555386,86.85,86.801,13.13735011]
[1773334453203,13.25418522,86.858,86.801,13.13735011]
[1773334453504,3.39555386,86.85,86.801,13.13735011]
[1773334453700,3.39489701,86.85,86.801,13.13735011]
[1773334453902,23.61418522,86.854,86.801,23.50335011]
[1773334454204,13.25418522,86.854,86.802,13.13735011]
[1773334454405,10.357,86.879,86.825,13.13735011]
[1773334454707,3.39489701,86.91,86.86,3.39489701]
[1773334454910,10.354,86.906,86.861,13.13735011]
[1773334455102,13.25418522,86.915,86.861,13.13735011]
[1773334455503,3.39489701,86.92,86.87,16.53224712]
[1773334456203,3.39489701,86.92,86.872,10.358]
[1773334456204,10.353,86.918,86.872,10.358]
[1773334456400,10.353,86.918,86.87,16.53224712]
[1773334457712,10.353,86.918,86.87,13.13735011]
[1773334458908,13.25418522,86.931,86.87,13.13735011]
[1773334458909,10.352,86.926,86.87,13.13735011]
[1773334459211,23.60618522,86.926,86.872,23.49535011]
[1773334459406,13.25418522,86.925,86.872,23.49535011]
[1773334461010,10.352,86.921,86.873,12.84713152]
[1773334462307,12.35685731,86.967,86.873,12.84713152]
[1773334462510,12.35685731,86.967,86.876,12.84713152]
[1773334462811,12.35685731,86.937,86.885,10.356]
[1773334463012,12.35685731,86.937,86.876,12.84713152]
[1773334463512,12.35685731,86.936,86.877,12.84713152]
[1773334464007,12.35685731,86.933,86.877,12.84713152]
[1773334464714,12.35685731,86.93,86.877,12.84713152]
[1773334466011,10.352,86.926,86.877,12.84713152]
[1773334468112,10.353,86.919,86.877,12.84713152]
[1773334469011,12.35685731,86.947,86.879,12.84713152]
[1773334469918,12.35685731,86.944,86.886,12.84713152]
[1773334470919,12.35685731,86.944,86.892,12.84713152]
[1773334471516,10.35,86.941,86.892,12.84713152]
[1773334472219,12.35685731,86.944,86.892,12.84713152]
[1773334472220,10.351,86.932,86.892,12.84713152]
[1773334475721,12.35685731,86.929,86.883,10.357]
[1773334475925,9.07937394,86.95,86.884,12.84713152]
[1773334476121,12.35685731,86.968,86.891,12.84713152]
[1773334476515,12.35685731,86.987,86.894,12.84713152]
[1773334476717,12.35685731,86.987,86.895,12.84713152]
[1773334476917,10.345,86.978,86.926,10.352]
[1773334477422,12.35685731,86.97,86.916,12.84713152]
[1773334477617,12.35685731,86.969,86.916,12.84713152]
[1773334478120,12.35685731,86.969,86.919,23.19913152]
[1773334478625,12.35685731,86.969,86.901,12.84713152]
[1773334478626,3.38612112,86.96,86.901,12.84713152]
[1773334478824,10.348,86.959,86.915,10.353]
[1773334479025,3.38612112,86.98,86.931,12.84713152]
[1773334479520,10.346,86.977,86.931,12.84713152]
[1773334480021,10.346,86.977,86.933,10.351]
[1773334480421,10.346,86.97,86.931,12.84713152]
[1773334480727,13.73212112,86.97,86.931,12.84713152]
[1773334481129,10.346,86.97,86.931,12.84713152]
[1773334482127,10.345,86.978,86.932,10.351]
[1773334482321,20.682,87.019,86.933,11.50286076]
[1773334482322,3.38612112,86.99,86.933,11.50286076]
[1773334483728,12.38197666,86.994,86.945,21.85186076]
[1773334484222,12.38197666,86.994,86.918,10.352]
[1773334484223,3.38612112,86.96,86.918,10.352]
[1773334484429,12.38197666,86.969,86.921,11.50286076]
[1773334485324,10.346,86.972,86.921,11.50286076]
[1773334485827,3.38612112,86.97,86.921,11.50286076]
[1773334486923,10.347,86.967,86.922,10.352]
[1773334487526,10.347,86.967,86.921,11.50286076]
[1773334488130,10.347,86.967,86.877,14.05997945]
[1773334488131,12.38197666,86.995,86.95,3.38612112]
[1773334488531,12.38197666,86.995,86.941,11.50286076]
[1773334488725,3.38612112,86.99,86.941,11.50286076]
[1773334489125,12.38197666,86.979,86.926,11.50286076]
[1773334490228,3.38612112,86.97,86.926,11.50286076]
[1773334491230,15.54060131,86.96,86.911,10.353]
[1773334491629,12.15448019,86.96,86.911,10.353]
[1773334492234,12.15448019,86.96,86.911,21.93830859]
[1773334492634,10.348,86.954,86.911,21.93830859]
[1773334493330,12.15448019,86.96,86.914,10.353]
[1773334493536,12.15448019,86.96,86.914,21.93830859]
[1773334496031,12.15448019,86.96,86.919,10.352]
[1773334496439,12.15448019,86.979,86.92,11.58530859]
[1773334497634,10.347,86.963,86.92,11.58530859]
[1773334499640,10.348,86.957,86.92,11.58530859]
[1773334500048,12.15448019,86.956,86.904,11.58530859]
[1773334500242,12.15448019,86.956,86.898,10.3609789]
[1773334500447,12.15448019,86.956,86.902,10.354]
[1773334500845,10.35,86.94,86.894,11.58530859]
[1773334501049,10.35,86.94,86.895,10.355]
[1773334501645,10.35,86.94,86.871,20.7219578]
[1773334501646,12.15448019,86.959,86.91,11.58530859]
[1773334502243,12.15448019,86.973,86.919,11.58530859]
[1773334502446,12.15448019,86.973,86.928,11.58530859]
[1773334502649,12.15448019,87.002,86.954,11.58530859]
[1773334503154,12.15448019,86.984,86.926,22.00660742]
[1773334503350,12.15448019,86.984,86.928,11.58530859]
[1773334503946,9.0709868,87.0,86.89,9.0709868]
[1773334503947,12.15448019,86.999,86.938,11.58530859]
[1773334504549,12.15448019,86.999,86.94,10.35]
[1773334505255,12.15448019,86.999,86.941,11.58530859]
[1773334505851,10.344,86.988,86.943,10.35]
[1773334506154,10.344,86.988,86.944,11.50693147]
[1773334506355,12.15448019,86.987,86.943,10.35]
[1773334506557,12.15448019,86.98,86.934,10.42129883]
[1773334506855,12.15448019,86.98,86.935,10.42129883]
[1773334507153,12.15448019,86.98,86.931,32.25596488]
[1773334507454,12.15448019,86.98,86.935,10.35]
[1773334507754,10.345,86.979,86.935,10.35]
[1773334507961,12.15448019,86.98,86.942,10.35]
[1773334508155,12.15448019,86.98,86.935,11.58530859]
[1773334508558,12.15448019,86.98,86.938,10.35]
[1773334510255,12.15448019,86.98,86.932,10.42129883]
[1773334510459,12.15448019,86.994,86.934,11.58530859]
[1773334511057,10.344,86.988,86.934,11.58530859]
[1773334511253,10.344,86.988,86.935,11.58530859]
[1773334511455,12.15448019,86.994,86.956,10.348]
[1773334512152,12.15448019,86.994,86.949,11.58530859]
[1773334512349,12.15448019,86.989,86.939,10.42129883]
[1773334512550,12.15448019,86.989,86.936,11.58530859]
[1773334512955,10.346,86.977,86.938,10.35]
[1773334513351,12.15448019,86.979,86.936,11.58530859]
[1773334513553,12.15448019,86.969,86.93,10.42129883]
[1773334513754,12.15448019,86.969,86.929,10.42129883]
[1773334513959,3.38329234,86.98,86.935,10.42129883]
[1773334514152,3.38329234,86.98,86.937,10.35]
[1773334514458,3.38329234,86.98,86.92,3.38329234]
[1773334514459,12.15448019,86.995,86.95,3.38329234]
[1773334514660,15.53777253,87.01,86.951,11.58530859]
[1773334514858,15.53777253,87.01,86.961,11.58530859]
[1773334515657,12.15448019,87.006,86.964,10.347]
[1773334516554,12.15448019,87.006,86.961,11.58530859]
[1773334516555,23.84129475,87.021,86.973,10.346]
[1773334516960,12.15448019,87.02,86.973,10.346]
[1773334517359,12.15448019,87.02,86.974,11.58530859]
[1773334517966,10.341,87.018,86.974,11.58530859]
[1773334518166,12.15448019,87.018,86.966,10.347]
[1773334518870,12.15448019,87.018,86.96,11.58530859]
[1773334519270,12.15448019,87.003,86.961,10.347]
[1773334520466,11.27770351,87.022,86.962,10.90244179]
[1773334520770,10.342,87.006,86.962,10.90244179]
[1773334520965,11.27770351,87.022,86.965,10.90244179]
[1773334521872,11.27770351,87.013,86.968,10.346]
[1773334522872,10.342,87.009,86.965,10.90244179]
[1773334523774,11.27770351,87.013,86.965,10.90244179]
[1773334524566,10.34,87.021,86.965,10.90244179]
[1773334524770,10.34,87.021,86.942,20.7]
[1773334524771,10.34,87.021,86.974,10.42129883]
[1773334525171,10.34,87.021,86.971,10.42129883]
[1773334525473,10.34,87.021,86.971,10.346]
[1773334525668,10.341,87.017,86.971,10.346]
[1773334525869,11.27770351,87.016,86.942,17.86164987]
[1773334526066,11.23526987,87.023,86.844,161.183]
[1773334526067,9.06095228,87.01,86.952,17.86164987]
[1773334526369,11.23526987,87.023,86.952,17.86164987]
[1773334526564,9.06095228,87.03,86.952,17.86164987]
[1773334526967,10.342,87.008,86.964,17.86126735]
[1773334529769,11.76724687,87.023,86.964,17.86126735]
[1773334529770,10.341,87.017,86.964,17.86126735]
[1773334530174,11.76724687,87.023,86.964,17.86126735]
[1773334530378,9.06095228,87.03,86.964,17.86126735]
[1773334530582,20.66958102,87.03,86.964,17.86126735]
[1773334531877,10.342,87.011,86.964,17.86126735]
[1773334532873,10.342,87.004,86.964,17.86126735]
[1773334533176,20.66958102,87.03,86.951,10.348]
[1773334533177,9.06095228,87.01,86.951,10.348]
[1773334533568,9.06095228,87.01,86.947,18.21931965]
[1773334535078,10.344,86.989,86.947,18.21931965]
[1773334535276,9.06095228,87.01,86.949,18.51186126]
[1773334535575,3.38409457,86.99,86.949,18.51186126]
[1773334537677,10.344,86.989,86.949,18.51186126]
[1773334538580,3.38409457,87.0,86.951,18.99818943]
[1773334539175,3.38409457,86.99,86.951,18.99818943]
[1773334539374,3.38409457,86.98,86.951,18.99818943]
[1773334543384,10.345,86.984,86.951,18.99818943]
[1773334544281,3.38409457,86.98,86.951,18.99818943]
[1773334546588,3.38409457,86.98,86.94,10.35]
[1773334547086,3.38409457,86.97,86.938,19.00477424]
[1773334547775,10.346,86.976,86.912,20.7219578]
[1773334547776,3.38409457,86.99,86.941,19.00478075]
[1773334547976,3.38409457,87.0,86.951,19.00478075]
[1773334548475,10.343,86.999,86.96,19.00478075]
[1773334549082,10.343,86.999,86.962,19.00478075]
[1773334553890,3.38409457,86.99,86.962,19.00478075]
[1773334554090,10.343,86.999,86.962,19.00478075]
[1773334555686,3.38409457,86.99,86.939,19.01344616]
[1773334555894,3.38409457,86.99,86.94,14.02131446]
[1773334556090,3.38409457,86.99,86.941,19.01344616]
[1773334556290,3.38409457,86.99,86.942,19.01344616]
[1773334556894,13.72909457,86.98,86.943,19.01344616]
[1773334558093,3.38409457,86.96,86.925,19.05383001]
[1773334558888,20.687,86.997,86.856,34.53659634]
[1773334558889,3.38409457,86.95,86.912,19.05383001]
[1773334559092,21.2604068,87.023,86.912,19.05383001]
[1773334559093,3.38409457,86.94,86.912,19.05383001]
[1773334559396,3.38409457,86.95,86.912,19.05383001]
[1773334560394,3.38409457,86.96,86.912,19.05383001]
[1773334560695,3.38409457,86.95,86.912,19.05383001]
[1773334560890,3.38409457,86.94,86.891,19.09242863]
[1773334561096,3.38409457,86.93,86.891,19.09242863]
[1773334561593,3.38409457,86.93,86.892,19.10289103]
[1773334561991,3.38409457,86.91,86.876,19.10289103]
[1773334562995,3.38409457,86.9,86.862,19.10289103]
[1773334564195,10.355,86.897,86.862,19.10289103]
[1773334564395,3.38409457,86.88,86.848,19.1198817]
[1773334564597,3.38409457,86.88,86.821,19.1198817]
[1773334565599,3.38409457,86.87,86.821,19.1198817]
[1773334565801,11.67148301,86.922,86.851,19.07331382]
[1773334565802,3.38409457,86.9,86.851,19.07331382]
[1773334567001,3.38409457,86.9,86.856,19.07331382]
[1773334567401,3.38409457,86.91,86.862,19.12889863]
[1773334567794,3.38409457,86.92,86.871,19.12889863]
[1773334568000,3.38409457,86.93,86.871,19.12889863]
[1773334568602,3.38409457,86.94,86.887,19.12889863]
[1773334569004,3.38409457,86.92,86.887,19.12889863]
[1773334569600,9.07853848,86.94,86.887,19.12889863]
[1773334570005,9.07853848,86.94,86.87,19.07225553]
[1773334570904,10.352,86.92,86.87,19.07225553]
[1773334571407,10.352,86.92,86.85,9.07853848]
[1773334571408,10.351,86.93,86.873,19.07225553]
[1773334572805,10.353,86.918,86.873,19.07225553]
[1773334574708,9.07853848,86.94,86.875,19.06819996]
[1773334575112,11.37338623,86.945,86.875,19.06819996]
[1773334575413,9.07853848,86.94,86.887,19.06819996]
[1773334575612,9.07853605,86.94,86.887,19.06819996]
[1773334576213,10.352,86.923,86.887,19.06819996]
[1773334578016,10.351,86.931,86.887,19.06819996]
[1773334578213,11.53871913,86.945,86.887,19.06819996]
[1773334578419,9.07853605,86.96,86.887,19.06819996]
[1773334578712,10.35,86.936,86.896,19.05875985]
[1773334578911,9.07853605,86.96,86.851,19.05875985]
[1773334579117,10.352,86.922,86.878,19.05875985]
[1773334579317,9.07853605,86.92,86.864,19.05875985]
[1773334580116,9.07853605,86.94,86.866,19.05837111]
[1773334580714,9.07853605,86.94,86.873,19.05814978]
[1773334582325,10.353,86.91,86.873,19.05814978]
[1773334582624,9.07853605,86.94,86.873,19.05814978]
[1773334583222,10.352,86.924,86.882,10.357]
[1773334583417,10.352,86.924,86.882,29.40699638]
[1773334584719,10.353,86.917,86.882,19.04999638]
[1773334585224,9.07853605,86.94,86.882,19.04999638]
[1773334587825,10.353,86.917,86.882,19.04999638]
[1773334588418,10.352,86.926,86.883,19.04953679]
[1773334588914,10.352,86.926,86.887,19.04953679]
[1773334589120,10.351,86.934,86.887,19.04953679]
[1773334589725,10.351,86.928,86.888,19.05142772]
[1773334590125,10.35,86.937,86.899,19.05142772]
[1773334591027,10.351,86.931,86.899,19.05142772]
[1773334591627,3.38884647,86.93,86.899,19.05142772]
[1773334592327,3.38884647,86.93,86.883,10.357]
[1773334592328,10.351,86.927,86.884,19.01777559]
[1773334592621,10.351,86.927,86.888,10.356]
[1773334593020,10.351,86.927,86.844,20.723]
[1773334593021,10.351,86.934,86.889,19.01777559]
[1773334593218,3.38884647,86.93,86.889,19.01777559]
[1773334594128,3.38884647,86.93,86.892,19.01562331]
[1773334598128,20.69,86.982,86.894,19.01667802]
[1773334598335,3.38884647,86.96,86.911,17.32225479]
[1773334598833,10.347,86.961,86.912,17.32225479]
[1773334599132,3.38884647,86.97,86.912,17.32225479]
[1773334599335,10.349,86.948,86.912,17.32225479]
[1773334599533,10.71572754,87.006,86.912,17.32225479]
[1773334599534,3.38884647,86.95,86.912,17.32225479]
[1773334600134,10.349,86.95,86.912,17.32225479]
[1773334602536,10.349,86.945,86.912,17.32225479]
[1773334602737,3.38884647,86.93,86.884,17.32866137]
[1773334603839,10.352,86.92,86.884,17.32866137]
[1773334604140,3.38884647,86.94,86.886,17.32885128]
[1773334604839,10.352,86.927,86.886,17.32885128]
[1773334607140,10.352,86.921,86.886,17.32885128]
[1773334609236,10.353,86.915,86.886,17.32885128]
[1773334609938,10.352,86.922,86.886,17.32885128]
[1773334611938,3.38884647,86.94,86.886,17.32885128]
[1773334611939,10.351,86.929,86.886,17.32885128]
[1773334612541,10.351,86.929,86.89,3.38884647]
[1773334612741,11.35791382,86.962,86.858,20.7219578]
[1773334612742,11.35791382,86.962,86.911,17.33773005]
[1773334612936,3.38884647,86.97,86.911,17.33773005]
[1773334613840,10.349,86.952,86.911,17.33773005]
[1773334614039,3.38884647,86.98,86.921,17.33859242]
[1773334614238,3.38884647,86.99,86.931,17.33859242]
[1773334614439,3.38884647,86.98,86.931,17.33859242]
[1773334614737,10.347,86.967,86.931,17.33859242]
[1773334616731,10.348,86.959,86.931,17.33859242]
[1773334616936,3.38884647,86.95,86.906,10.4246115]
[1773334617132,11.53354547,86.981,86.862,20.719]
[1773334617133,3.38884647,86.94,86.897,17.31518988]
[1773334617844,10.351,86.928,86.897,17.31518988]
[1773334618641,10.352,86.921,86.883,17.31310556]
[1773334618946,3.38884647,86.92,86.869,17.31310556]
[1773334619139,10.354,86.909,86.87,17.31310556]
[1773334619340,3.38884647,86.91,86.87,17.31310556]
[1773334619541,10.351,86.927,86.878,17.32271988]
[1773334619741,9.0784466,86.95,86.878,17.32271988]
[1773334621640,10.354,86.91,86.863,17.32441809]
[1773334621840,9.0784466,86.93,86.863,17.32441809]
[1773334622042,10.355,86.895,86.847,17.32441809]
[1773334622648,9.0784466,86.91,86.847,17.32441809]
[1773334623047,10.357,86.877,86.836,10.362]
[1773334623243,9.0784466,86.91,86.836,10.362]
[1773334623545,9.0784466,86.91,86.837,17.31932883]
[1773334623842,10.355,86.902,86.856,17.31932883]
[1773334624946,10.355,86.895,86.856,17.31932883]
[1773334625143,9.0784466,86.93,86.856,17.31932883]
[1773334625941,10.354,86.906,86.863,17.32035769]
[1773334626545,10.355,86.899,86.863,17.32035769]
[1773334627347,10.355,86.899,86.83,492.49996563]
[1773334627348,10.356,86.892,86.846,17.32035769]
[1773334628251,9.0784466,86.89,86.831,17.31664136]
[1773334629543,9.0784466,86.89,86.816,27.68209407]
[1773334629743,9.0784466,86.89,86.79,9.0784466]
[1773334629744,9.0784466,86.87,86.799,17.31709407]
[1773334629950,9.0784466,86.85,86.799,17.31709407]
[1773334630248,10.363,86.83,86.783,17.31709407]
[1773334630546,9.0784466,86.85,86.783,17.31709407]
[1773334630750,9.0784466,86.83,86.783,17.31709407]
[1773334630945,9.0784466,86.83,86.764,10.371]
[1773334630946,9.0784466,86.83,86.765,17.31709407]
[1773334631843,20.4190146,86.83,86.765,17.31709407]
[1773334632849,10.365,86.818,86.765,17.31709407]
[1773334634648,10.366,86.809,86.765,17.31709407]
[1773334634845,10.366,86.809,86.747,10.373]
[1773334635043,20.4190146,86.83,86.746,17.49709339]
[1773334635044,9.0784466,86.81,86.746,17.49709339]
[1773334635751,9.0784466,86.81,86.748,17.50254635]
[1773334635752,10.367,86.8,86.748,17.50254635]
[1773334635954,9.0784466,86.81,86.748,17.50254635]
[1773334636148,20.4190146,86.83,86.748,17.50254635]
[1773334636850,10.365,86.811,86.75,17.50254635]
[1773334638050,9.10481398,86.82,86.755,17.50741025]
[1773334638051,19.46881398,86.82,86.755,17.50741025]
[1773334638845,19.46881398,86.82,86.762,17.50741025]
[1773334640152,10.365,86.811,86.762,17.50741025]
[1773334641347,9.10481398,86.82,86.762,17.50741025]
[1773334642645,11.340568,86.83,86.763,17.50867537]
[1773334642844,9.10481398,86.84,86.763,17.50867537]
[1773334643255,10.364,86.819,86.766,17.50867537]
[1773334644555,10.363,86.828,86.776,17.50645306]
[1773334645350,9.10481398,86.84,86.741,17.50645306]
[1773334645953,10.366,86.81,86.761,17.48614813]
[1773334646952,10.366,86.81,86.763,10.371]
[1773334647155,10.366,86.81,86.764,17.48614813]
[1773334650658,10.366,86.803,86.764,17.48614813]
[1773334651155,10.366,86.803,86.747,17.52015212]
[1773334651360,10.367,86.796,86.747,17.52015212]
[1773334651762,9.10481398,86.82,86.747,17.52015212]
[1773334652762,10.366,86.804,86.75,17.50288275]
[1773334653462,9.10481398,86.82,86.75,17.50288275]
[1773334653463,10.367,86.797,86.75,17.50288275]
[1773334654856,10.367,86.797,86.753,17.51349469]
[1773334655062,9.10481398,86.82,86.753,17.51349469]
[1773334656455,9.10481398,86.82,86.761,17.50976979]
[1773334656958,11.59971988,86.83,86.772,17.50976979]
[1773334657158,9.10481398,86.84,86.772,17.50976979]
[1773334657962,10.363,86.83,86.784,17.51070046]
[1773334658162,11.54049618,86.842,86.784,17.51070046]
[1773334658357,336.2010268,86.858,86.784,17.51070046]
[1773334658562,336.2010268,86.858,86.794,17.51070046]
[1773334658563,10.361,86.846,86.794,17.51070046]
[1773334658862,336.2010268,86.858,86.794,17.51070046]
[1773334659061,336.2010268,86.858,86.813,17.51070046]
[1773334660457,10.359,86.868,86.815,17.49870757]
[1773334660662,9.10481398,86.88,86.815,17.49870757]
[1773334661366,20.65982779,86.88,86.815,17.49870757]
[1773334661563,3.39415468,86.87,86.815,17.49870757]
[1773334661764,3.39415468,86.87,86.821,17.49741484]
[1773334662866,3.39415468,86.86,86.821,17.49741484]
[1773334663872,10.36,86.852,86.821,17.49741484]
[1773334666165,10.36,86.852,86.775,20.74]
[1773334666166,3.39415468,86.83,86.781,17.49591688]
[1773334666371,3.39415468,86.84,86.781,17.49591688]
[1773334666674,10.363,86.832,86.789,17.49591688]
[1773334667175,3.39415468,86.85,86.791,17.49591688]
[1773334667874,13.75515468,86.85,86.801,17.50924302]
[1773334668475,10.362,86.843,86.801,17.50924302]
[1773334669179,3.39415468,86.85,86.802,17.50924302]
[1773334670075,3.39415468,86.86,86.804,17.51415261]
[1773334670578,3.39415468,86.86,86.8,3.39415468]
[1773334670579,3.39415468,86.85,86.806,17.51412818]
[1773334671073,11.55501381,86.88,86.806,17.51412818]
[1773334671074,3.39415468,86.84,86.806,17.51412818]
[1773334672978,10.362,86.839,86.806,17.51412818]
[1773334673882,3.39415468,86.84,86.806,17.51412818]
[1773334676085,10.362,86.842,86.806,17.51412818]
[1773334676581,3.39415468,86.86,86.806,17.51412818]
[1773334677573,3.39415468,86.85,86.806,17.51412818]
[1773334677772,3.39415468,86.84,86.807,17.54206553]
[1773334679183,3.39415468,86.85,86.807,17.54206553]
[1773334679876,10.362,86.84,86.807,17.54206553]
[1773334680782,3.39415468,86.86,86.807,17.54206553]
[1773334680988,3.39415468,86.86,86.81,3.39415468]
[1773334681183,10.358,86.872,86.82,3.39415468]
[1773334681885,3.39415468,86.87,86.82,3.39415468]
[1773334682685,3.39415468,86.85,86.807,17.54206553]
[1773334683089,3.39415468,86.84,86.807,17.54206553]
[1773334683278,10.362,86.836,86.807,17.54206553]
[1773334683483,3.39415468,86.83,86.807,17.54206553]
[1773334683884,3.39415468,86.84,86.807,17.54206553]
[1773334684381,3.39415468,86.84,86.78,3.39415468]
[1773334685583,11.66797789,86.88,86.772,10.37634374]
[1773334685584,3.39415468,86.82,86.772,10.37634374]
[1773334685889,3.39415468,86.82,86.771,10.37634374]
[1773334686084,13.75815468,86.82,86.773,10.37]
[1773334686288,3.39415468,86.8,86.749,10.37634374]
[1773334686585,3.39415468,86.79,86.738,10.37634374]
[1773334686789,10.368,86.788,86.744,10.373]
[1773334686983,3.39415468,86.79,86.739,10.37634374]
[1773334687181,3.39415468,86.79,86.74,3.39415468]
[1773334687793,3.39415468,86.79,86.751,10.372]
[1773334687991,3.39415468,86.8,86.75,3.39415468]
[1773334689093,10.367,86.798,86.749,10.373]
[1773334694993,10.366,86.806,86.761,10.371]
[1773334696202,10.367,86.8,86.753,10.372]
[1773334698304,13.76115468,86.8,86.753,10.372]
[1773334699606,13.76588862,86.8,86.753,10.372]
[1773334700304,10.366,86.808,86.759,10.371]
[1773334700904,3.39888862,86.8,86.759,10.371]
[1773334701309,10.366,86.809,86.765,10.371]
[1773334702207,10.366,86.803,86.765,10.371]
[1773334704204,3.39888862,86.8,86.765,10.371]
[1773334705007,10.366,86.809,86.771,10.37]
[1773334706913,10.71885857,86.869,86.777,10.369]
[1773334707115,3.39888862,86.82,86.777,10.369]
[1773334708013,11.66797789,86.88,86.777,10.369]
[1773334708014,3.39888862,86.81,86.777,10.369]
[1773334708616,10.366,86.808,86.754,10.52731506]
[1773334708816,3.39888862,86.8,86.75,3.39888862]
[1773334710007,3.39888862,86.8,86.746,10.52731506]
[1773334710214,3.39888862,86.79,86.744,10.52731506]
[1773334710414,3.39888862,86.8,86.75,3.39888862]
[1773334710716,3.39888862,86.81,86.75,3.39888862]
[1773334711118,10.366,86.809,86.764,10.371]
[1773334711320,3.39888862,86.81,86.764,10.371]
[1773334711518,3.39888862,86.81,86.75,3.39888862]
[1773334711814,3.39888862,86.81,86.751,10.52731506]
[1773334712119,3.39888862,86.81,86.75,3.39888862]
[1773334712317,10.366,86.804,86.769,10.37]
[1773334713619,10.366,86.804,86.762,10.371]
[1773334714123,13.76388862,86.81,86.768,10.37]
[1773334714620,3.39888862,86.82,86.76,3.39888862]
[1773334715018,3.39888862,86.81,86.76,3.39888862]
[1773334715222,3.39888862,86.82,86.76,3.39888862]
[1773334715923,10.365,86.817,86.774,10.37]
[1773334717913,3.39888862,86.84,86.78,3.39888862]
[1773334718324,3.39888862,86.84,86.79,3.39888862]
[1773334719119,3.39888862,86.84,86.78,3.39888862]
[1773334719418,3.39888862,86.83,86.766,10.52731506]
[1773334719620,10.366,86.808,86.761,10.52731506]
[1773334719816,3.39888862,86.81,86.759,10.52731506]
[1773334720120,3.39888862,86.8,86.755,10.52731506]
[1773334720524,3.39888862,86.8,86.746,10.52731506]
[1773334720919,3.39888862,86.8,86.747,10.52731506]
[1773334721521,10.367,86.795,86.757,10.372]
[1773334722418,10.367,86.795,86.758,17.26731038]
[1773334724620,10.368,86.786,86.758,17.26731038]
[1773334724827,3.39888862,86.79,86.747,17.26571361]
[1773334725318,3.39888862,86.8,86.747,17.26571361]
[1773334725518,10.369,86.783,86.747,17.26571361]
[1773334726224,10.368,86.79,86.751,17.26553138]
[1773334729329,10.368,86.79,86.754,10.52731506]
[1773334729526,10.368,86.79,86.754,27.81063185]
[1773334729725,10.368,86.79,86.755,17.28331679]
[1773334730228,10.368,86.79,86.756,10.52731506]
[1773334730825,10.368,86.79,86.756,27.8107286]
[1773334731028,10.368,86.79,86.757,17.28341354]
[1773334731332,10.368,86.79,86.757,27.8107286]
[1773334732128,10.367,86.799,86.758,17.28972437]
[1773334732430,10.367,86.799,86.76,3.39888862]
[1773334732637,3.39888862,86.81,86.761,17.28972437]
[1773334733336,10.367,86.8,86.767,10.52731506]
[1773334733529,10.367,86.8,86.763,10.52731506]
[1773334733729,10.367,86.8,86.762,10.52731506]
[1773334734334,13.76588862,86.8,86.762,10.52731506]
[1773334735934,13.76588862,86.8,86.763,10.52731506]
[1773334736128,13.76588862,86.8,86.762,10.52731506]
[1773334736328,13.76588862,86.8,86.763,10.52731506]
[1773334736535,13.76588862,86.8,86.762,10.52731506]
[1773334736925,10.367,86.8,86.763,17.28882447]
[1773334737130,10.367,86.8,86.763,27.81613953]
[1773334737633,10.367,86.8,86.763,17.28882447]
[1773334739035,10.367,86.793,86.763,17.28882447]
[1773334740032,3.39888862,86.8,86.757,10.52731506]
[1773334740231,3.39888862,86.79,86.752,17.29076535]
[1773334740439,3.39888862,86.8,86.754,17.29076535]
[1773334741531,10.368,86.787,86.754,17.29076535]
[1773334742632,10.369,86.782,86.754,17.29076535]
[1773334745338,10.368,86.789,86.754,17.29076535]